fUST/lending_fUST_20250603
["ID","MTS","AMOUNT","RATE_DAILY","PERIOD"]
[363914456,1748922653934,-316.8849428,0.00022274,2]
[363914457,1748922653943,-572.6068135,0.00022274,2]
[363914458,1748922653954,-572.6068135,0.00022274,2]
[363914459,1748922653965,-572.6068135,0.00022274,2]
[363914460,1748922653976,-341.0771548,0.00022274,2]
[363914461,1748922653988,-890.502918,0.00022274,7]
[363914462,1748922653997,-1071.55,0.00022286,7]
[363914463,1748922654008,-8291.15622639,0.000223,2]
[363914464,1748922654018,-151.0,0.000223,7]
[363914465,1748922654027,-2585.82,0.000223,2]
[363914466,1748922654037,-215.0738,0.00022309,2]
[363914467,1748922654047,-151.0,0.0002231,7]
[363914468,1748922654058,-157.63534513,0.00022319,2]
[363914469,1748922654067,-159.9390523,0.00022329,2]
[363914470,1748922654078,-160.0,0.00022346,3]
[363914471,1748922654088,-164.11211257,0.00022346,5]
[363914472,1748922654099,-160.0,0.00022346,5]
[363914473,1748922654109,-1071.55,0.00022386,2]
[363914474,1748922654118,-519.53819596,0.00022386,2]
[363914475,1748922654128,-364.514434,0.00022386,7]
[363914476,1748922654139,-364.514434,0.00022386,7]
[363914477,1748922654148,-534.320721,0.00022386,7]
[363914478,1748922654157,-534.320721,0.00022386,7]
[363914479,1748922654167,-152.852233,0.000224,7]
[363914480,1748922654177,-151.0,0.000224,7]
[363914481,1748922654187,-151.0,0.000224,7]
[363914482,1748922654196,-842.5625,0.000224,3]
[363914483,1748922654205,-1196.326315,0.000224,5]
[363914484,1748922654216,-160.0,0.000224,3]
[363914485,1748922654225,-4499.56562892,0.000224,2]
[363914486,1748922654235,-2000.0,0.00022438,2]
[363914487,1748922654246,-2000.0,0.00022438,2]
[363914488,1748922654256,-1015.62632458,0.00022438,2]
[363914489,1748922654265,-159.9390523,0.00022438,2]
[363914490,1748922654275,-1730.10239774,0.00022452,7]
[363914491,1748922654285,-22595.47,0.00022461,2]
[363914492,1748922654295,-151.0,0.00022461,7]
[363914493,1748922654308,-151.0,0.00022461,7]
[363914494,1748922654318,-151.0,0.00022461,7]
[363914495,1748922654327,-151.0,0.00022461,7]
[363914496,1748922654337,-155.357839,0.00022461,7]
[363914497,1748922654347,-1024.924651,0.00022461,2]
[363914498,1748922654356,-1024.924651,0.00022461,2]
[363914499,1748922654366,-151.0,0.00022461,7]
[363914500,1748922654375,-220.37509,0.00022461,7]
[363914501,1748922654384,-220.37509,0.00022461,7]
[363914502,1748922654393,-151.0,0.00022461,7]
[363914503,1748922654403,-380.229576,0.00022461,7]
[363914504,1748922654412,-380.229576,0.00022461,7]
[363914505,1748922654423,-151.0,0.00022461,7]
[363914506,1748922654433,-151.0,0.00022461,7]
[363914507,1748922654442,-151.0,0.00022461,7]
[363914508,1748922654452,-266.231301,0.00022461,7]
[363914509,1748922654462,-266.231301,0.00022461,7]
[363914510,1748922654471,-456.047144,0.00022461,7]
[363914511,1748922654480,-456.047144,0.00022461,7]
[363914512,1748922654490,-428.730718,0.00022461,7]
[363914513,1748922654500,-428.730718,0.00022461,7]
[363914514,1748922654509,-474.771067,0.00022461,7]
[363914515,1748922654519,-474.771067,0.00022461,7]
[363914516,1748922654529,-810.334995,0.00022461,2]
[363914517,1748922654538,-810.334995,0.00022461,2]
[363914518,1748922654548,-151.0,0.00022461,7]
[363914519,1748922654559,-438.047127,0.00022461,7]
[363914520,1748922654568,-438.047127,0.00022461,7]
[363914521,1748922654578,-500.0,0.00022465,2]
[363914522,1748922654587,-254.4526129,0.00022465,2]
[363914523,1748922654598,-1437.33,0.00022465,2]
[363914524,1748922654607,-781.65,0.00022465,2]
[363914525,1748922654617,-1218.98,0.00022465,2]
[363914526,1748922654627,-688.66,0.00022465,2]
[363914527,1748922654636,-933.78,0.00022465,2]
[363914528,1748922654646,-525.8,0.00022465,2]
[363914529,1748922654656,-1169.05,0.00022465,2]
[363914530,1748922654665,-1184.86,0.00022465,2]
[363914531,1748922654675,-588.47,0.00022465,2]
[363914532,1748922654684,-449.07,0.00022465,2]
[363914533,1748922654694,-490.97,0.00022465,2]
[363914534,1748922654703,-733.02,0.00022465,2]
[363914535,1748922654713,-813.14,0.00022465,2]
[363914536,1748922654723,-853.95,0.00022465,2]
[363914537,1748922654733,-2434.98,0.00022465,2]
[363914538,1748922654742,-2000.0,0.00022466,120]
[363914539,1748922654752,-1071.55,0.00022486,3]
[363914540,1748922654762,-151.0,0.0002249,19]
[363914541,1748922654772,-320.91753277,0.00022499,2]
[363914542,1748922654782,-151.0,0.00022499,7]
[363914543,1748922654791,-151.0,0.00022499,7]
[363914544,1748922654801,-151.0,0.00022499,7]
[363914545,1748922654813,-198403.26622052,0.000225,60]
[363914546,1748922654823,-732.49,0.000225,7]
[363914547,1748922654833,-245890.34070963,0.000225,60]
[363914548,1748922654847,-26499.46627959,0.000225,60]
[363914549,1748922654858,-9856.33213789,0.000225,60]
[363914550,1748922654874,-440.0,0.00016438,2]
[363914551,1748922654883,-20233.14378716,0.000225,60]
[363914552,1748922654895,-30460.5017087,0.000225,60]
[363914553,1748922654906,-1157.32618202,0.000225,60]
[363914554,1748922654918,-705.1420001,0.000225,60]
[363914555,1748922654930,-401.92323987,0.000225,60]
[363914556,1748922948436,-273.6228153,0.00015572,2]
[363914557,1748922950528,-211.5618481,0.00015572,2]
[363914558,1748923001847,228.677562,0.00013699,2]
[363914560,1748923088142,489.0,0.00015,2]
[363914606,1748923838236,-1745.98416468,0.00016175,2]
[363914608,1748923838247,-269.68775919,0.00016175,2]
[363914610,1748923838257,-895.58804343,0.00016338,2]
[363914612,1748923838266,-1200.0,0.00016436,2]
[363914613,1748923838276,-300.0,0.00016437,2]
[363914614,1748923838286,-189.0,0.00016437,2]
[363914615,1748923838298,-300.0,0.00016437,2]
[363914616,1748923838309,-430.0,0.00016438,2]
[363914617,1748923838319,-430.0,0.00016438,2]
[363914618,1748923838329,-193.65212174,0.00016438,2]
[363914619,1748923838338,-430.0,0.00016438,2]
[363914620,1748923838348,-490.0,0.00016438,2]
[363914621,1748923838358,-430.0,0.00016438,2]
[363914622,1748923838368,-356.0,0.00016438,2]
[363914623,1748923838378,-170.0,0.00016438,2]
[363914624,1748923838387,-49.54490295,0.00016438,2]
[363914625,1748923838400,-390.45509705,0.00016438,2]
[363914626,1748923838410,-365.43465465,0.00016438,2]
[363914627,1748923838426,-64.56534535,0.00016438,2]
[363914628,1748923838436,-426.11699442,0.00016438,2]
[363914629,1748923838446,-430.0,0.00016438,2]
[363914630,1748923838455,-461.59339401,0.00016438,2]
[363914631,1748923838464,-430.0,0.00016438,2]
[363914632,1748923838474,-430.0,0.00016438,2]
[363914633,1748923838483,-430.0,0.00016438,2]
[363914635,1748923838494,-430.0,0.00016438,2]
[363914636,1748923838503,-186.33090533,0.00016438,2]
[363914637,1748923838513,-577.94343503,0.00016438,2]
[363914638,1748923838523,-440.0,0.00016438,2]
[363914639,1748923838532,-440.0,0.00016438,2]
[363914640,1748923838543,-440.0,0.00016438,2]
[363914641,1748923838555,-502.1372048,0.00016438,2]
[363914642,1748923838723,-440.0,0.00016438,2]
[363914643,1748923838734,-473.90782298,0.00016438,2]
[363914644,1748923838744,-440.0,0.00016438,2]
[363914645,1748923838754,-440.0,0.00016438,2]
[363914646,1748923838763,-430.0,0.00016438,2]
[363914647,1748923838773,-430.0,0.00016438,2]
[363914648,1748923838783,-430.0,0.00016438,2]
[363914649,1748923838794,-430.0,0.00016438,2]
[363914650,1748923838803,-430.0,0.00016438,2]
[363914651,1748923838813,-430.0,0.00016438,2]
[363914652,1748923838823,-430.0,0.00016438,2]
[363914653,1748923838833,-500.0,0.00016438,2]
[363914654,1748923838843,-564.52572047,0.00016438,2]
[363914655,1748923838852,-440.0,0.00016438,2]
[363914656,1748923838862,-430.0,0.00016438,2]
[363914657,1748923838871,-440.0,0.00016438,2]
[363914658,1748923838881,-430.0,0.00016438,2]
[363914659,1748923838891,-430.0,0.00016438,2]
[363914660,1748923838901,-408.82957007,0.00016438,2]
[363914661,1748923838911,-440.0,0.00016438,2]
[363914662,1748923838920,-430.0,0.00016438,2]
[363914663,1748923838930,-430.0,0.00016438,2]
[363914664,1748923838940,-402.98553357,0.00016438,2]
[363914665,1748923838950,-433.89121027,0.00016438,2]
[363914666,1748923838960,-440.0,0.00016438,2]
[363914667,1748923838970,-430.0,0.00016438,2]
[363914668,1748923838979,-406.14639367,0.00016438,2]
[363914669,1748923838989,-440.0,0.00016438,2]
[363914670,1748923838999,-324.57264223,0.00016438,2]
[363914671,1748923839008,-440.0,0.00016438,2]
[363914672,1748923839018,-430.0,0.00016438,2]
[363914673,1748923839028,-430.0,0.00016438,2]
[363914674,1748923839040,-440.0,0.00016438,2]
[363914675,1748923839051,-440.0,0.00016438,2]
[363914676,1748923839062,-216.96691374,0.00016438,2]
[363914677,1748923839072,-430.0,0.00016438,2]
[363914678,1748923839082,-440.0,0.00016438,2]
[363914679,1748923839092,-440.0,0.00016438,2]
[363914680,1748923839102,-217.30718596,0.00016438,2]
[363914681,1748923839111,-440.0,0.00016438,2]
[363914682,1748923839121,-159.46286385,0.00016438,2]
[363914683,1748923839131,-440.0,0.00016438,2]
[363914684,1748923839140,-496.80101082,0.00016438,2]
[363914685,1748923839150,-430.0,0.00016438,2]
[363914686,1748923839160,-440.0,0.00016438,2]
[363914687,1748923839170,-430.0,0.00016438,2]
[363914688,1748923839180,-321.1975335,0.00016438,2]
[363914689,1748923839190,-440.0,0.00016438,2]
[363914690,1748923839200,-440.0,0.00016438,2]
[363914691,1748923839209,-440.0,0.00016438,2]
[363914692,1748923839219,-440.0,0.00016438,2]
[363914693,1748923839228,-430.0,0.00016438,2]
[363914694,1748923839238,-430.0,0.00016438,2]
[363914695,1748923839248,-430.0,0.00016438,2]
[363914696,1748923839258,-430.0,0.00016438,2]
[363914697,1748923839268,-430.0,0.00016438,2]
[363914698,1748923839278,-430.0,0.00016438,2]
[363914699,1748923839288,-430.0,0.00016438,2]
[363914700,1748923839297,-430.0,0.00016438,2]
[363914701,1748923839307,-454.80896396,0.00016438,2]
[363914702,1748923839318,-430.0,0.00016438,2]
[363914703,1748923839328,-452.08000297,0.00016438,2]
[363914704,1748923839338,-430.0,0.00016438,2]
[363914705,1748923839347,-430.0,0.00016438,2]
[363914706,1748923839357,-440.0,0.00016438,2]
[363914707,1748923839366,-430.0,0.00016438,2]
[363914708,1748923839376,-440.0,0.00016438,2]
[363914709,1748923839385,-430.0,0.00016438,2]
[363914710,1748923839395,-430.0,0.00016438,2]
[363914711,1748923839404,-430.0,0.00016438,2]
[363914712,1748923839415,-430.0,0.00016438,2]
[363914713,1748923839424,-430.0,0.00016438,2]
[363914714,1748923839433,-299.919,0.00016438,2]
[363914715,1748923839443,-430.0,0.00016438,2]
[363914716,1748923839452,-430.0,0.00016438,2]
[363914717,1748923839462,-430.0,0.00016438,2]
[363914718,1748923839471,-430.0,0.00016438,2]
[363914719,1748923839481,-430.0,0.00016438,2]
[363914720,1748923839491,-440.0,0.00016438,2]
[363914721,1748923839500,-430.0,0.00016438,2]
[363914722,1748923839510,-430.0,0.00016438,2]
[363914723,1748923839520,-430.0,0.00016438,2]
[363914724,1748923839530,-272.24322947,0.00016438,2]
[363914725,1748923839541,-420.0,0.00016438,2]
[363914726,1748923839554,-440.0,0.00016438,2]
[363914727,1748923839565,-502.97983041,0.00016438,2]
[363914728,1748923839574,-440.0,0.00016438,2]
[363914729,1748923839584,-260.0,0.00016438,2]
[363914730,1748923839595,-440.0,0.00016438,2]
[363914731,1748923839604,-449.70088413,0.00016438,2]
[363914732,1748923839613,-431.68761565,0.00016438,2]
[363914733,1748923839625,-440.0,0.00016438,2]
[363914734,1748923839635,-440.0,0.00016438,2]
[363914735,1748923839645,-440.0,0.00016438,2]
[363914736,1748923839655,-440.0,0.00016438,2]
[363914737,1748923839664,-440.0,0.00016438,2]
[363914738,1748923839674,-339.71230779,0.00016438,2]
[363914739,1748923839683,-440.0,0.00016438,2]
[363914740,1748923839693,-440.0,0.00016438,2]
[363914741,1748923839703,-433.2304265,0.00016438,2]
[363914742,1748923839712,-431.89007237,0.00016438,2]
[363914743,1748923839722,-440.0,0.00016438,2]
[363914744,1748923839732,-440.0,0.00016438,2]
[363914746,1748923839741,-1574.72,0.00016438,2]
[363914747,1748923839751,-433.64476194,0.00016438,2]
[363914748,1748923839760,-430.89353627,0.00016438,2]
[363914749,1748923839769,-440.0,0.00016438,2]
[363914750,1748923839779,-432.8368412,0.00016438,2]
[363914751,1748923839788,-434.58460539,0.00016438,2]
[363914752,1748923839797,-440.0,0.00016438,2]
[363914753,1748923839807,-440.0,0.00016438,2]
[363914754,1748923839817,-440.0,0.00016438,2]
[363914755,1748923839826,-440.0,0.00016438,2]
[363914756,1748923839836,-432.17616536,0.00016438,2]
[363914757,1748923839845,-440.0,0.00016438,2]
[363914758,1748923839855,-440.0,0.00016438,2]
[363914759,1748923839864,-440.0,0.00016438,2]
[363914760,1748923839874,-440.0,0.00016438,2]
[363914761,1748923839884,-440.0,0.00016438,2]
[363914762,1748923839894,-438.96093348,0.00016438,2]
[363914763,1748923839903,-433.05437745,0.00016438,2]
[363914764,1748923839913,-440.0,0.00016438,2]
[363914765,1748923839923,-430.0,0.00016438,2]
[363914766,1748923839932,-430.0,0.00016438,2]
[363914767,1748923839943,-354.37901585,0.00016438,2]
[363914768,1748923839952,-431.84763605,0.00016438,2]
[363914769,1748923839962,-430.0,0.00016438,2]
[363914770,1748923839972,-440.0,0.00016438,2]
[363914771,1748923839981,-430.0,0.00016438,2]
[363914772,1748923839991,-418.84512848,0.00016438,2]
[363914774,1748923840001,-440.0,0.00016438,2]
[363914775,1748923840010,-401.9514327,0.00016438,2]
[363914776,1748923840021,-536.63150592,0.00016438,2]
[363914777,1748923840030,-440.0,0.00016438,2]
[363914778,1748923840040,-440.0,0.00016438,2]
[363914779,1748923840050,-440.0,0.00016438,2]
[363914780,1748923840060,-1596.37,0.00016438,2]
[363914781,1748923840070,-4258.19,0.00016438,2]
[363914783,1748923840080,-4258.19,0.00016438,2]
[363914785,1748923840091,-4258.19,0.00016438,2]
[363914786,1748923840101,-4258.19,0.00016438,2]
[363914787,1748923840111,-4258.19,0.00016438,2]
[363914788,1748923840121,-4258.19,0.00016438,2]
[363914789,1748923840131,-431.33136481,0.00016438,2]
[363914790,1748923840141,-4258.19,0.00016438,2]
[363914791,1748923840150,-4258.19,0.00016438,2]
[363914792,1748923840160,-440.0,0.00016438,2]
[363914793,1748923840170,-440.0,0.00016438,2]
[363914794,1748923840180,-430.88132088,0.00016438,2]
[363914796,1748923840190,-440.0,0.00016438,2]
[363914798,1748923840200,-440.0,0.00016438,2]
[363914799,1748923840209,-909.41,0.00016438,2]
[363914800,1748923840219,-456.7507858,0.00016438,2]
[363914801,1748923840229,-440.0,0.00016438,2]
[363914802,1748923840238,-400.0,0.00016438,2]
[363914803,1748923840248,-1584.27,0.00016438,2]
[363914804,1748923840258,-430.0,0.00016438,2]
[363914805,1748923840267,-430.0,0.00016438,2]
[363914806,1748923840277,-300.0,0.00016438,2]
[363914807,1748923840288,-440.0,0.00016438,2]
[363914808,1748923840298,-440.0,0.00016438,2]
[363914809,1748923840307,-400.0,0.00016438,2]
[363914811,1748923840318,-931.22,0.00016438,2]
[363914814,1748923840328,-440.0,0.00016438,2]
[363914816,1748923840338,-1347.42,0.00016438,2]
[363914818,1748923840347,-694.71,0.00016438,2]
[363914820,1748923840357,-430.0,0.00016438,2]
[363914822,1748923840367,-430.0,0.00016438,2]
[363914824,1748923840376,-430.0,0.00016438,2]
[363914826,1748923840386,-430.0,0.00016438,2]
[363914828,1748923840396,-440.0,0.00016438,2]
[363914830,1748923840406,-570.89,0.00016438,2]
[363914832,1748923840415,-430.0,0.00016438,2]
[363914834,1748923840425,-455.6,0.00016438,2]
[363914836,1748923840435,-440.0,0.00016438,2]
[363914838,1748923840444,-440.0,0.00016438,2]
[363914840,1748923840454,-440.0,0.00016438,2]
[363914842,1748923840463,-450.0,0.00016438,2]
[363914844,1748923840472,-440.0,0.00016438,2]
[363914846,1748923840481,-436.52516877,0.00016438,2]
[363914848,1748923840491,-430.0,0.00016438,2]
[363914850,1748923840500,-440.0,0.00016438,2]
[363914852,1748923840509,-440.0,0.00016438,2]
[363914854,1748923840519,-440.0,0.00016438,2]
[363914856,1748923840529,-430.0,0.00016438,2]
[363914858,1748923840539,-440.0,0.00016438,2]
[363914860,1748923840553,-550.28,0.00016438,2]
[363914862,1748923840564,-440.0,0.00016438,2]
[363914864,1748923840574,-534.07854985,0.00016438,2]
[363914866,1748923840585,-644.57,0.00016438,2]
[363914868,1748923840596,-440.0,0.00016438,2]
[363914870,1748923840606,-430.0,0.00016438,2]
[363914872,1748923840615,-430.0,0.00016438,2]
[363914874,1748923840627,-430.0,0.00016438,2]
[363914875,1748923840638,-430.0,0.00016438,2]
[363914876,1748923840647,-440.0,0.00016438,2]
[363914877,1748923840656,-430.0,0.00016438,2]
[363914879,1748923840666,-440.0,0.00016438,2]
[363914881,1748923840675,-430.0,0.00016438,2]
[363914883,1748923840685,-430.0,0.00016438,2]
[363914885,1748923840694,-430.0,0.00016438,2]
[363914887,1748923840703,-440.0,0.00016438,2]
[363914889,1748923840713,-440.0,0.00016438,2]
[363914891,1748923840723,-440.0,0.00016438,2]
[363914893,1748923840732,-430.0,0.00016438,2]
[363914895,1748923840742,-440.0,0.00016438,2]
[363914897,1748923840752,-440.0,0.00016438,2]
[363914899,1748923840762,-430.0,0.00016438,2]
[363914901,1748923840773,-440.0,0.00016438,2]
[363914903,1748923840784,-430.0,0.00016438,2]
[363914905,1748923840795,-437.55533067,0.00016438,2]
[363914907,1748923840807,-658.84,0.00016438,2]
[363914909,1748923840824,-440.0,0.00016438,2]
[363914911,1748923840835,-430.0,0.00016438,2]
[363914913,1748923840844,-1350.0,0.00016438,2]
[363914915,1748923840855,-440.0,0.00016438,2]
[363914917,1748923840866,-1053.41,0.00016438,2]
[363914919,1748923840876,-500.0,0.00016438,2]
[363914921,1748923840886,-7413.3020038,0.00016438,2]
[363914923,1748923840895,-190.08,0.00016702,3]
[363914925,1748923840905,-570.26,0.00016702,3]
[363914927,1748923840915,-4258.19,0.00016711,2]
[363914929,1748923840925,-4258.19,0.00016711,2]
[363914931,1748923840935,-430.0,0.00016712,2]
[363914933,1748923840945,-434.86,0.00016712,2]
[363914935,1748923840955,-372.96466656,0.00016712,2]
[363914937,1748923840965,-440.0,0.00016712,2]
[363914939,1748923840975,-420.0,0.00016712,2]
[363914941,1748923840984,-420.0,0.00016712,2]
[363914943,1748923840994,-430.72174057,0.00016712,2]
[363914945,1748923841004,-440.0,0.00016712,2]
[363914947,1748923841014,-420.0,0.00016712,2]
[363914949,1748923841023,-440.0,0.00016712,2]
[363914950,1748923841033,-440.0,0.00016712,2]
[363914951,1748923841042,-440.0,0.00016712,2]
[363914952,1748923841051,-420.0,0.00016712,2]
[363914953,1748923841064,-420.0,0.00016712,2]
[363914954,1748923841074,-420.0,0.00016712,2]
[363914955,1748923841084,-418.3243254,0.00016712,2]
[363914956,1748923841094,-420.0,0.00016712,2]
[363914957,1748923841104,-420.0,0.00016712,2]
[363914958,1748923841114,-440.0,0.00016712,2]
[363914959,1748923841123,-440.0,0.00016712,2]
[363914960,1748923841133,-420.0,0.00016712,2]
[363914961,1748923841143,-505.56491729,0.00016712,2]
[363914962,1748923841152,-231.72829972,0.00016712,2]
[363914963,1748923841162,-440.0,0.00016712,2]
[363914964,1748923841172,-516.59067073,0.00016712,2]
[363914965,1748923841181,-420.0,0.00016712,2]
[363914966,1748923841191,-423.94459992,0.00016712,2]
[363914967,1748923841203,-420.0,0.00016712,2]
[363914968,1748923841212,-539.98058387,0.00016712,2]
[363914969,1748923841221,-291.41388107,0.00016712,2]
[363914970,1748923841231,-299.9389057,0.00016712,2]
[363914971,1748923841240,-420.0,0.00016712,2]
[363914972,1748923841250,-420.0,0.00016712,2]
[363914973,1748923841259,-420.0,0.00016712,2]
[363914974,1748923841269,-420.0,0.00016712,2]
[363914976,1748923841279,-420.0,0.00016712,2]
[363914977,1748923841288,-282.41438469,0.00016712,2]
[363914979,1748923841297,-1574.72,0.00016712,2]
[363914981,1748923841307,-428.40089247,0.00016712,2]
[363914983,1748923841319,-440.0,0.00016712,2]
[363914985,1748923841329,-440.0,0.00016712,2]
[363914987,1748923841338,-420.0,0.00016712,2]
[363914989,1748923841348,-440.0,0.00016712,2]
[363914991,1748923841357,-422.40351523,0.00016712,2]
[363914993,1748923841367,-420.0,0.00016712,2]
[363914995,1748923841376,-420.0,0.00016712,2]
[363914997,1748923841386,-440.0,0.00016712,2]
[363914999,1748923841396,-427.85237846,0.00016712,2]
[363915001,1748923841405,-420.0,0.00016712,2]
[363915003,1748923841415,-440.0,0.00016712,2]
[363915005,1748923841425,-440.0,0.00016712,2]
[363915007,1748923841435,-1596.37,0.00016712,2]
[363915009,1748923841444,-420.0,0.00016712,2]
[363915011,1748923841454,-420.0,0.00016712,2]
[363915013,1748923841464,-440.0,0.00016712,2]
[363915015,1748923841474,-420.0,0.00016712,2]
[363915017,1748923841483,-909.41,0.00016712,2]
[363915019,1748923841493,-420.0,0.00016712,2]
[363915021,1748923841503,-1584.27,0.00016712,2]
[363915023,1748923841512,-440.0,0.00016712,2]
[363915025,1748923841522,-440.0,0.00016712,2]
[363915027,1748923841532,-931.22,0.00016712,2]
[363915029,1748923841541,-420.0,0.00016712,2]
[363915031,1748923841554,-1347.42,0.00016712,2]
[363915033,1748923841565,-694.71,0.00016712,2]
[363915035,1748923841575,-440.0,0.00016712,2]
[363915037,1748923841584,-570.89,0.00016712,2]
[363915039,1748923841594,-455.6,0.00016712,2]
[363915041,1748923841603,-420.0,0.00016712,2]
[363915043,1748923841613,-440.0,0.00016712,2]
[363915045,1748923841625,-430.0,0.00016712,2]
[363915047,1748923841634,-440.0,0.00016712,2]
[363915048,1748923841644,-440.0,0.00016712,2]
[363915051,1748923841654,-430.0,0.00016712,2]
[363915052,1748923841663,-550.28,0.00016712,2]
[363915055,1748923841673,-440.0,0.00016712,2]
[363915056,1748923841682,-644.57,0.00016712,2]
[363915058,1748923841691,-440.0,0.00016712,2]
[363915060,1748923841702,-440.0,0.00016712,2]
[363915063,1748923841712,-440.0,0.00016712,2]
[363915065,1748923841722,-430.0,0.00016712,2]
[363915067,1748923841731,-440.0,0.00016712,2]
[363915069,1748923841740,-440.0,0.00016712,2]
[363915071,1748923841750,-440.0,0.00016712,2]
[363915073,1748923841759,-440.0,0.00016712,2]
[363915075,1748923841769,-658.84,0.00016712,2]
[363915077,1748923841778,-1350.0,0.00016712,2]
[363915079,1748923841788,-440.0,0.00016712,2]
[363915081,1748923841798,-2096.16961248,0.00016886,2]
[363915083,1748923841806,-500.0,0.00016935,2]
[363915084,1748923841820,-500.0,0.00016974,2]
[363915086,1748923841829,-4258.19,0.00016983,2]
[363915088,1748923841838,-4258.19,0.00016984,2]
[363915089,1748923841848,-4258.19,0.00016985,2]
[363915091,1748923841858,-410.0,0.00016986,2]
[363915092,1748923841868,-440.0,0.00016986,2]
[363915093,1748923841878,-450.0,0.00016986,2]
[363915095,1748923841888,-410.0,0.00016986,2]
[363915096,1748923841898,-440.0,0.00016986,2]
[363915097,1748923841908,-440.0,0.00016986,2]
[363915098,1748923841918,-440.0,0.00016986,2]
[363915099,1748923841928,-440.0,0.00016986,2]
[363915100,1748923841937,-1574.72,0.00016986,2]
[363915101,1748923841947,-440.0,0.00016986,2]
[363915102,1748923841956,-478.06,0.00016986,2]
[363915103,1748923842089,-280.54687953,0.00016986,2]
[363915104,1748923842100,-440.0,0.00016986,2]
[363915105,1748923842110,-411.01,0.00016986,2]
[363915106,1748923842120,-440.0,0.00016986,2]
[363915107,1748923842130,-1596.37,0.00016986,2]
[363915108,1748923842139,-440.0,0.00016986,2]
[363915109,1748923842149,-909.41,0.00016986,2]
[363915110,1748923842159,-1584.27,0.00016986,2]
[363915111,1748923842169,-440.0,0.00016986,2]
[363915112,1748923842180,-931.22,0.00016986,2]
[363915113,1748923842190,-1347.42,0.00016986,2]
[363915114,1748923842200,-694.71,0.00016986,2]
[363915115,1748923842209,-440.0,0.00016986,2]
[363915116,1748923842219,-570.89,0.00016986,2]
[363915117,1748923842229,-455.6,0.00016986,2]
[363915118,1748923842238,-482.4,0.00016986,2]
[363915119,1748923842248,-440.0,0.00016986,2]
[363915120,1748923842258,-440.0,0.00016986,2]
[363915121,1748923842268,-550.28,0.00016986,2]
[363915122,1748923842278,-430.0,0.00016986,2]
[363915123,1748923842288,-644.57,0.00016986,2]
[363915124,1748923842298,-440.0,0.00016986,2]
[363915125,1748923842307,-283.16908231,0.00016986,2]
[363915126,1748923842317,-440.0,0.00016986,2]
[363915127,1748923842327,-440.0,0.00016986,2]
[363915128,1748923842337,-430.0,0.00016986,2]
[363915129,1748923842347,-440.0,0.00016986,2]
[363915130,1748923842357,-440.0,0.00016986,2]
[363915131,1748923842366,-658.84,0.00016986,2]
[363915132,1748923842376,-1350.0,0.00016986,2]
[363915133,1748923842386,-440.0,0.00016986,2]
[363915134,1748923842396,-1473.37170079,0.000171,2]
[363915135,1748923842406,-1473.3717005,0.00017141,2]
[363915136,1748923842416,-4258.19,0.00017259,2]
[363915137,1748923842425,-420.0,0.0001726,2]
[363915138,1748923842435,-440.0,0.0001726,2]